[Event "Early-Titled-Tuesday-Blitz-July-09-2024"]
[Site "Chess.com"]
[Date "2024.07.09"]
[Round "9"]
[White "vladjianu"]
[Black "Herzog2012"]
[Result "1/2-1/2"]
[WhiteElo "2611"]
[BlackElo "2717"]
[TimeControl "180+1"]
[EndTime "9:46:55 PDT"]
[Termination "Game drawn - insufficient material"]

1. d4 {[%clk 0:03:00.9]} 1... Nf6 {[%clk 0:02:59.9]} 2. c4 {[%clk 0:02:59.3]}
2... e6 {[%clk 0:02:59.5]} 3. Nf3 {[%clk 0:02:58.5]} 3... d5 {[%clk 0:02:58.8]}
4. g3 {[%clk 0:02:58.1]} 4... Be7 {[%clk 0:02:57.8]} 5. Bg2 {[%clk 0:02:57.9]}
5... O-O {[%clk 0:02:58.4]} 6. O-O {[%clk 0:02:55.5]} 6... dxc4 {[%clk
0:02:58.6]} 7. Qc2 {[%clk 0:02:52.6]} 7... a6 {[%clk 0:02:58.2]} 8. a4 {[%clk
0:02:49.9]} 8... Bd7 {[%clk 0:02:56.3]} 9. Qxc4 {[%clk 0:02:47.6]} 9... Bc6
{[%clk 0:02:56]} 10. Bg5 {[%clk 0:02:41.9]} 10... h6 {[%clk 0:02:54]} 11. Bxf6
{[%clk 0:02:37.9]} 11... Bxf6 {[%clk 0:02:54.9]} 12. Nc3 {[%clk 0:02:37.9]}
12... Bxf3 {[%clk 0:02:42.2]} 13. Bxf3 {[%clk 0:02:38.8]} 13... c6 {[%clk
0:02:42.4]} 14. e3 {[%clk 0:02:36.2]} 14... a5 {[%clk 0:02:42.1]} 15. b4 {[%clk
0:02:33.5]} 15... axb4 {[%clk 0:02:31.5]} 16. Qxb4 {[%clk 0:02:34.4]} 16... Qe7
{[%clk 0:02:11.7]} 17. Rfb1 {[%clk 0:02:25]} 17... Ra7 {[%clk 0:01:46.3]} 18.
Ne4 {[%clk 0:02:09]} 18... Qxb4 {[%clk 0:01:34.5]} 19. Nxf6+ {[%clk 0:02:09.1]}
19... gxf6 {[%clk 0:01:34.3]} 20. Rxb4 {[%clk 0:02:10]} 20... Na6 {[%clk
0:01:04.4]} 21. Rb6 {[%clk 0:02:05.9]} 21... Nc7 {[%clk 0:01:03.9]} 22. Rab1
{[%clk 0:02:06.3]} 22... Rxa4 {[%clk 0:01:02.8]} 23. Rxb7 {[%clk 0:02:05.9]}
23... Nd5 {[%clk 0:01:02.9]} 24. Rc1 {[%clk 0:01:44]} 24... f5 {[%clk
0:00:34.9]} 25. Rxc6 {[%clk 0:01:37.8]} 25... Nf6 {[%clk 0:00:35]} 26. Rcc7
{[%clk 0:01:31.9]} 26... Ra1+ {[%clk 0:00:34]} 27. Kg2 {[%clk 0:01:32.1]} 27...
Ra2 {[%clk 0:00:34.6]} 28. h3 {[%clk 0:01:30.8]} 28... Kg7 {[%clk 0:00:34.4]}
29. Re7 {[%clk 0:01:29.6]} 29... Kg6 {[%clk 0:00:34.1]} 30. d5 {[%clk
0:01:13.8]} 30... Nxd5 {[%clk 0:00:28.4]} 31. Bxd5 {[%clk 0:01:13.2]} 31... exd5
{[%clk 0:00:29.3]} 32. Rb6+ {[%clk 0:01:10.5]} 32... Kg7 {[%clk 0:00:24.3]} 33.
Rd6 {[%clk 0:01:09.8]} 33... Rc8 {[%clk 0:00:03]} 34. Rxd5 {[%clk 0:01:01.6]}
34... Kg6 {[%clk 0:00:02.8]} 35. Rd6+ {[%clk 0:01:00.4]} 35... f6 {[%clk
0:00:02.3]} 36. Rdd7 {[%clk 0:00:58.8]} 36... Rcc2 {[%clk 0:00:02.6]} 37. Rg7+
{[%clk 0:00:57.3]} 37... Kh5 {[%clk 0:00:02.8]} 38. g4+ {[%clk 0:00:57.8]} 38...
Kh4 {[%clk 0:00:01.6]} 39. gxf5 {[%clk 0:00:49.8]} 39... Rxf2+ {[%clk
0:00:02.2]} 40. Kg1 {[%clk 0:00:50.4]} 40... Kxh3 {[%clk 0:00:01.9]} 41. Rg6
{[%clk 0:00:47.7]} 41... Rg2+ {[%clk 0:00:02.2]} 42. Rxg2 {[%clk 0:00:46.5]}
42... Rxg2+ {[%clk 0:00:03.1]} 43. Kf1 {[%clk 0:00:47.1]} 43... Rg5 {[%clk
0:00:02.9]} 44. Rh7 {[%clk 0:00:42.2]} 44... Rxf5+ {[%clk 0:00:02.4]} 45. Ke2
{[%clk 0:00:42]} 45... h5 {[%clk 0:00:02.8]} 46. e4 {[%clk 0:00:42.6]} 46... Re5
{[%clk 0:00:02.8]} 47. Kf3 {[%clk 0:00:43.1]} 47... Kh4 {[%clk 0:00:02.3]} 48.
Kf4 {[%clk 0:00:42.8]} 48... Ra5 {[%clk 0:00:02.1]} 49. Rh6 {[%clk 0:00:43.3]}
49... Ra6 {[%clk 0:00:01.7]} 50. Kf5 {[%clk 0:00:43]} 50... Ra5+ {[%clk
0:00:02.3]} 51. Kf4 {[%clk 0:00:42.7]} 51... Ra6 {[%clk 0:00:02.1]} 52. Rg6
{[%clk 0:00:41.9]} 52... Ra1 {[%clk 0:00:01.8]} 53. Rxf6 {[%clk 0:00:40.6]}
53... Rf1+ {[%clk 0:00:02.4]} 54. Ke5 {[%clk 0:00:41.5]} 54... Re1 {[%clk
0:00:03]} 55. Rg6 {[%clk 0:00:40.6]} 55... Kh3 {[%clk 0:00:02.6]} 56. Kf5 {[%clk
0:00:37]} 56... h4 {[%clk 0:00:02.4]} 57. Rh6 {[%clk 0:00:36.6]} 57... Kg3
{[%clk 0:00:02.3]} 58. Rg6+ {[%clk 0:00:34.2]} 58... Kf3 {[%clk 0:00:02.6]} 59.
e5 {[%clk 0:00:35.1]} 59... h3 {[%clk 0:00:02.6]} 60. Rh6 {[%clk 0:00:34.6]}
60... Kg3 {[%clk 0:00:02.8]} 61. e6 {[%clk 0:00:34.3]} 61... h2 {[%clk
0:00:02.8]} 62. Kf6 {[%clk 0:00:34]} 62... Rf1+ {[%clk 0:00:02.4]} 63. Kg7
{[%clk 0:00:33.2]} 63... Re1 {[%clk 0:00:03]} 64. Kf7 {[%clk 0:00:33.1]} 64...
Rf1+ {[%clk 0:00:02.6]} 65. Kg7 {[%clk 0:00:32.7]} 65... Re1 {[%clk 0:00:02.4]}
66. Kf7 {[%clk 0:00:32.3]} 66... Re4 {[%clk 0:00:02.3]} 67. e7 {[%clk
0:00:30.1]} 67... Rf4+ {[%clk 0:00:02.6]} 68. Kg7 {[%clk 0:00:29.2]} 68... Re4
{[%clk 0:00:02.9]} 69. Kf7 {[%clk 0:00:28.4]} 69... Rf4+ {[%clk 0:00:03.3]} 70.
Kg7 {[%clk 0:00:28.3]} 70... Re4 {[%clk 0:00:03.8]} 71. Rg6+ {[%clk 0:00:27.2]}
71... Kf2 {[%clk 0:00:02.5]} 72. Rh6 {[%clk 0:00:27.1]} 72... Rxe7+ {[%clk
0:00:02.4]} 73. Kf6 {[%clk 0:00:27.7]} 73... Kg2 {[%clk 0:00:01.9]} 74. Kxe7
{[%clk 0:00:26.4]} 74... h1=Q {[%clk 0:00:01.8]} 75. Rxh1 {[%clk 0:00:26.5]}
75... Kxh1 {[%clk 0:00:02.7]} 1/2-1/2

[Event "Early-Titled-Tuesday-Blitz-July-09-2024"]
[Site "Chess.com"]
[Date "2024.07.09"]
[Round "9"]
[White "Pitomina"]
[Black "Makswolf200817"]
[Result "0-1"]
[WhiteElo "2603"]
[BlackElo "2777"]
[TimeControl "180+1"]
[EndTime "9:46:57 PDT"]
[Termination "Makswolf200817 won on time"]

1. e4 {[%clk 0:02:59.8]} 1... c5 {[%clk 0:02:59.3]} 2. Nf3 {[%clk 0:02:59.5]}
2... d6 {[%clk 0:02:59.4]} 3. d4 {[%clk 0:02:59.4]} 3... cxd4 {[%clk 0:02:59.8]}
4. Nxd4 {[%clk 0:03:00.3]} 4... Nf6 {[%clk 0:03:00.4]} 5. Nc3 {[%clk 0:03:00.3]}
5... a6 {[%clk 0:03:01]} 6. Be2 {[%clk 0:02:57]} 6... e5 {[%clk 0:02:59.6]} 7.
Nb3 {[%clk 0:02:56.6]} 7... Be7 {[%clk 0:02:59.6]} 8. O-O {[%clk 0:02:56.4]}
8... O-O {[%clk 0:03:00]} 9. Re1 {[%clk 0:02:56.5]} 9... Be6 {[%clk 0:02:59.3]}
10. Bf3 {[%clk 0:02:56.2]} 10... Qc7 {[%clk 0:02:59.1]} 11. a4 {[%clk
0:02:55.5]} 11... Rc8 {[%clk 0:02:58.3]} 12. Nd2 {[%clk 0:02:55.3]} 12... Nc6
{[%clk 0:02:57.5]} 13. Nf1 {[%clk 0:02:54.8]} 13... Nd4 {[%clk 0:02:45.7]} 14.
Bg5 {[%clk 0:02:53.5]} 14... h6 {[%clk 0:02:34.4]} 15. Bxf6 {[%clk 0:02:52.9]}
15... Bxf6 {[%clk 0:02:35.3]} 16. Ne3 {[%clk 0:02:53.4]} 16... Bg5 {[%clk
0:02:35.1]} 17. Ned5 {[%clk 0:02:41.4]} 17... Qc5 {[%clk 0:02:34.7]} 18. Be2
{[%clk 0:01:57]} 18... b5 {[%clk 0:02:13.4]} 19. axb5 {[%clk 0:01:37.6]} 19...
axb5 {[%clk 0:02:10.7]} 20. Rxa8 {[%clk 0:01:38.5]} 20... Rxa8 {[%clk
0:02:11.1]} 21. Bd3 {[%clk 0:01:28.6]} 21... Rc8 {[%clk 0:01:44.6]} 22. Ne3
{[%clk 0:01:19.3]} 22... b4 {[%clk 0:01:39]} 23. Ncd5 {[%clk 0:01:02.2]} 23...
Bxd5 {[%clk 0:01:38.5]} 24. Nxd5 {[%clk 0:00:58]} 24... Nxc2 {[%clk 0:01:00.9]}
25. Bxc2 {[%clk 0:00:43.9]} 25... Qxc2 {[%clk 0:01:01]} 26. b3 {[%clk
0:00:27.6]} 26... Qb2 {[%clk 0:00:46.8]} 27. Qd3 {[%clk 0:00:09.8]} 27... Rc2
{[%clk 0:00:41.7]} 28. Rf1 {[%clk 0:00:09.2]} 28... Rd2 {[%clk 0:00:32.5]} 29.
Qf3 {[%clk 0:00:09.1]} 29... Rd4 {[%clk 0:00:29]} 30. g3 {[%clk 0:00:08.9]}
30... Qc2 {[%clk 0:00:24.5]} 31. h4 {[%clk 0:00:08.9]} 31... Bd8 {[%clk
0:00:24.7]} 32. Re1 {[%clk 0:00:07.2]} 32... Rd3 {[%clk 0:00:22.8]} 33. Qe2
{[%clk 0:00:06.8]} 33... Qxe2 {[%clk 0:00:21.8]} 34. Rxe2 {[%clk 0:00:07.7]}
34... Rxb3 {[%clk 0:00:22.5]} 35. Kg2 {[%clk 0:00:08]} 35... Ba5 {[%clk
0:00:19.5]} 36. Ra2 {[%clk 0:00:07.8]} 36... Ra3 {[%clk 0:00:19.8]} 37. Rb2
{[%clk 0:00:07.7]} 37... b3 {[%clk 0:00:20.1]} 38. Kf3 {[%clk 0:00:07.3]} 38...
g6 {[%clk 0:00:18.1]} 39. Ke3 {[%clk 0:00:07.5]} 39... Be1 {[%clk 0:00:15]} 40.
Kd3 {[%clk 0:00:07]} 40... Ra2 {[%clk 0:00:12.2]} 41. Rxb3 {[%clk 0:00:06.1]}
41... Bxf2 {[%clk 0:00:12.9]} 42. Kc4 {[%clk 0:00:05.5]} 42... Re2 {[%clk
0:00:11.6]} 43. Nc3 {[%clk 0:00:04.7]} 43... Re3 {[%clk 0:00:11.3]} 44. Rb8+
{[%clk 0:00:04.4]} 44... Kg7 {[%clk 0:00:11.5]} 45. Rd8 {[%clk 0:00:04.9]} 45...
Be1 {[%clk 0:00:10.9]} 46. Nd5 {[%clk 0:00:03.4]} 46... Rxe4+ {[%clk 0:00:11.4]}
47. Kb5 {[%clk 0:00:03.4]} 47... Bxg3 {[%clk 0:00:11.5]} 48. h5 {[%clk
0:00:03.1]} 48... gxh5 {[%clk 0:00:11.2]} 49. Kc6 {[%clk 0:00:03.2]} 49... Rc4+
{[%clk 0:00:10.7]} 50. Kxd6 {[%clk 0:00:03.2]} 50... Rd4 {[%clk 0:00:11.3]} 51.
Kc6 {[%clk 0:00:03.3]} 51... e4 {[%clk 0:00:11.6]} 52. Re8 {[%clk 0:00:03.5]}
52... h4 {[%clk 0:00:10.7]} 53. Ne7 {[%clk 0:00:03.7]} 53... Kf6 {[%clk
0:00:09.7]} 54. Ng8+ {[%clk 0:00:02.4]} 54... Kg5 {[%clk 0:00:09.7]} 55. Ne7
{[%clk 0:00:02.7]} 55... Rd6+ {[%clk 0:00:07.5]} 56. Kc5 {[%clk 0:00:02.6]}
56... Re6 {[%clk 0:00:05.4]} 57. Rg8+ {[%clk 0:00:03]} 57... Kf4 {[%clk
0:00:05.3]} 58. Nd5+ {[%clk 0:00:03.4]} 58... Kf3 {[%clk 0:00:05.7]} 59. Rf8
{[%clk 0:00:03.3]} 59... Bd6+ {[%clk 0:00:04.8]} 60. Kc4 {[%clk 0:00:02.9]}
60... Bxf8 {[%clk 0:00:05.5]} 0-1

[Event "Early-Titled-Tuesday-Blitz-July-09-2024"]
[Site "Chess.com"]
[Date "2024.07.09"]
[Round "9"]
[White "RobertoJBM"]
[Black "Viacheslav92"]
[Result "1-0"]
[WhiteElo "2836"]
[BlackElo "2589"]
[TimeControl "180+1"]
[EndTime "9:47:00 PDT"]
[Termination "RobertoJBM won on time"]

1. d4 {[%clk 0:03:00.9]} 1... Nf6 {[%clk 0:02:55.9]} 2. Nf3 {[%clk 0:03:00.7]}
2... e6 {[%clk 0:02:55.6]} 3. e3 {[%clk 0:03:01.6]} 3... c5 {[%clk 0:02:53.8]}
4. Bd3 {[%clk 0:03:02]} 4... b6 {[%clk 0:02:53.4]} 5. O-O {[%clk 0:03:01.8]}
5... Bb7 {[%clk 0:02:53.9]} 6. c3 {[%clk 0:03:02.2]} 6... cxd4 {[%clk
0:02:53.6]} 7. exd4 {[%clk 0:02:58.7]} 7... Be7 {[%clk 0:02:52.3]} 8. Bg5 {[%clk
0:02:58.4]} 8... d6 {[%clk 0:02:50.4]} 9. Nbd2 {[%clk 0:02:57.6]} 9... Nh5
{[%clk 0:02:49.9]} 10. Bxe7 {[%clk 0:02:56.4]} 10... Qxe7 {[%clk 0:02:50.8]} 11.
Re1 {[%clk 0:02:55.7]} 11... Nf4 {[%clk 0:02:45.8]} 12. Bb5+ {[%clk 0:02:50.7]}
12... Nd7 {[%clk 0:02:44]} 13. g3 {[%clk 0:02:48.9]} 13... Ng6 {[%clk
0:02:35.6]} 14. Bf1 {[%clk 0:02:26.8]} 14... O-O {[%clk 0:02:33.8]} 15. Bg2
{[%clk 0:02:25.9]} 15... Nf6 {[%clk 0:02:31.5]} 16. a4 {[%clk 0:02:22.2]} 16...
a6 {[%clk 0:02:31.3]} 17. Nc4 {[%clk 0:02:19.7]} 17... Qc7 {[%clk 0:02:23]} 18.
Ne3 {[%clk 0:02:06.2]} 18... Nd5 {[%clk 0:02:16.5]} 19. Qd3 {[%clk 0:01:52.9]}
19... Nxe3 {[%clk 0:02:15.4]} 20. Qxe3 {[%clk 0:01:48.3]} 20... Rac8 {[%clk
0:02:11.1]} 21. h4 {[%clk 0:01:43.4]} 21... Ne7 {[%clk 0:02:04.7]} 22. h5 {[%clk
0:01:40.9]} 22... h6 {[%clk 0:02:04.1]} 23. Nh4 {[%clk 0:01:30.3]} 23... Bxg2
{[%clk 0:01:51.9]} 24. Kxg2 {[%clk 0:01:31.2]} 24... Nd5 {[%clk 0:01:47.9]} 25.
Qd3 {[%clk 0:01:29.8]} 25... Nf6 {[%clk 0:01:44.5]} 26. Qxa6 {[%clk 0:01:21.1]}
26... Qc6+ {[%clk 0:01:41.7]} 27. Kg1 {[%clk 0:01:18.8]} 27... Nxh5 {[%clk
0:01:42]} 28. Qb5 {[%clk 0:01:15.4]} 28... Qxb5 {[%clk 0:01:35.6]} 29. axb5
{[%clk 0:01:16.3]} 29... Nf6 {[%clk 0:01:29.5]} 30. Ra6 {[%clk 0:01:12.4]} 30...
Rb8 {[%clk 0:01:29.9]} 31. Ng2 {[%clk 0:00:53.6]} 31... Nd5 {[%clk 0:01:24.2]}
32. c4 {[%clk 0:00:50.3]} 32... Nf6 {[%clk 0:01:16.3]} 33. Ne3 {[%clk
0:00:48.1]} 33... Rfc8 {[%clk 0:01:16.9]} 34. Kf1 {[%clk 0:00:45.6]} 34... Kf8
{[%clk 0:01:14.9]} 35. Ke2 {[%clk 0:00:45.4]} 35... d5 {[%clk 0:01:13.8]} 36. b3
{[%clk 0:00:43.6]} 36... Ne4 {[%clk 0:01:09.6]} 37. g4 {[%clk 0:00:39.4]} 37...
Nd6 {[%clk 0:01:03.3]} 38. Kd3 {[%clk 0:00:35]} 38... dxc4+ {[%clk 0:00:52.6]}
39. bxc4 {[%clk 0:00:34.8]} 39... Rd8 {[%clk 0:00:53.2]} 40. f4 {[%clk
0:00:31.4]} 40... Rb7 {[%clk 0:00:48.6]} 41. Rea1 {[%clk 0:00:28.5]} 41... Nc8
{[%clk 0:00:34.8]} 42. Ra8 {[%clk 0:00:26.4]} 42... Rbd7 {[%clk 0:00:34.7]} 43.
d5 {[%clk 0:00:26.2]} 43... exd5 {[%clk 0:00:24.5]} 44. Nxd5 {[%clk 0:00:26.7]}
44... Ne7 {[%clk 0:00:25.1]} 45. Rxd8+ {[%clk 0:00:26.5]} 45... Rxd8 {[%clk
0:00:26]} 46. Kd4 {[%clk 0:00:23.9]} 46... Nxd5 {[%clk 0:00:24.7]} 47. cxd5
{[%clk 0:00:24.8]} 47... Ke7 {[%clk 0:00:25.1]} 48. Rc1 {[%clk 0:00:18.2]} 48...
Rd6 {[%clk 0:00:18.7]} 49. Rc7+ {[%clk 0:00:16.7]} 49... Rd7 {[%clk 0:00:18.3]}
50. Rc6 {[%clk 0:00:16.7]} 50... Rd6 {[%clk 0:00:18.2]} 51. Ke5 {[%clk
0:00:13.4]} 51... f6+ {[%clk 0:00:17.9]} 52. Ke4 {[%clk 0:00:14]} 52... g6
{[%clk 0:00:16]} 53. f5 {[%clk 0:00:14.1]} 53... gxf5+ {[%clk 0:00:13.5]} 54.
gxf5 {[%clk 0:00:15]} 54... h5 {[%clk 0:00:12.7]} 55. Rc7+ {[%clk 0:00:14.5]}
55... Rd7 {[%clk 0:00:12.5]} 56. Rc6 {[%clk 0:00:11.7]} 56... Rd6 {[%clk
0:00:12.6]} 57. Rc8 {[%clk 0:00:11.7]} 57... h4 {[%clk 0:00:09.3]} 58. Rh8
{[%clk 0:00:11.6]} 58... Rd7 {[%clk 0:00:09.9]} 59. Rxh4 {[%clk 0:00:10.8]}
59... Kd6 {[%clk 0:00:10.5]} 60. Kd4 {[%clk 0:00:10.4]} 60... Re7 {[%clk
0:00:08.9]} 61. Rh6 {[%clk 0:00:10]} 61... Rf7 {[%clk 0:00:09.3]} 62. Rh8 {[%clk
0:00:09.8]} 62... Rg7 {[%clk 0:00:06.1]} 63. Rd8+ {[%clk 0:00:08.7]} 63... Rd7
{[%clk 0:00:05]} 64. Rc8 {[%clk 0:00:05.7]} 64... Rc7 {[%clk 0:00:03.4]} 65. Rb8
{[%clk 0:00:05.9]} 1-0

[Event "Early-Titled-Tuesday-Blitz-July-09-2024"]
[Site "Chess.com"]
[Date "2024.07.09"]
[Round "9"]
[White "ChessSwole"]
[Black "Zq1"]
[Result "1/2-1/2"]
[WhiteElo "2703"]
[BlackElo "2596"]
[TimeControl "180+1"]
[EndTime "9:47:04 PDT"]
[Termination "Game drawn - insufficient material"]

1. d4 {[%clk 0:03:00.9]} 1... Nf6 {[%clk 0:02:59.4]} 2. Bg5 {[%clk 0:03:00.5]}
2... c5 {[%clk 0:02:58.8]} 3. Nc3 {[%clk 0:03:00.1]} 3... cxd4 {[%clk
0:02:54.8]} 4. Qxd4 {[%clk 0:03:00.8]} 4... e6 {[%clk 0:02:50.2]} 5. O-O-O
{[%clk 0:02:57.1]} 5... h6 {[%clk 0:02:34.5]} 6. Qh4 {[%clk 0:02:51.5]} 6... Be7
{[%clk 0:02:23.4]} 7. e4 {[%clk 0:02:49.2]} 7... Qa5 {[%clk 0:02:18.7]} 8. Bd2
{[%clk 0:02:10.5]} 8... Qc7 {[%clk 0:01:57.7]} 9. Qg3 {[%clk 0:01:43.6]} 9...
Qxg3 {[%clk 0:01:55]} 10. hxg3 {[%clk 0:01:44.5]} 10... a6 {[%clk 0:01:47.4]}
11. f3 {[%clk 0:01:37.5]} 11... Nc6 {[%clk 0:01:43.8]} 12. g4 {[%clk 0:01:32.7]}
12... Rg8 {[%clk 0:01:19.3]} 13. Na4 {[%clk 0:01:31.5]} 13... b5 {[%clk
0:01:16.9]} 14. Nb6 {[%clk 0:01:31]} 14... Rb8 {[%clk 0:01:17.3]} 15. Nxc8
{[%clk 0:01:31.6]} 15... Rxc8 {[%clk 0:01:17.9]} 16. Kb1 {[%clk 0:01:24.5]}
16... d5 {[%clk 0:01:16]} 17. exd5 {[%clk 0:01:17.2]} 17... Nxd5 {[%clk
0:01:15.4]} 18. Nh3 {[%clk 0:01:08.3]} 18... Ne5 {[%clk 0:01:06.6]} 19. Nf4
{[%clk 0:01:03.8]} 19... Nxf4 {[%clk 0:01:00.7]} 20. Bxf4 {[%clk 0:01:04.7]}
20... Bf6 {[%clk 0:00:59]} 21. a4 {[%clk 0:01:01.9]} 21... Nc4 {[%clk
0:00:55.6]} 22. axb5 {[%clk 0:00:53.5]} 22... axb5 {[%clk 0:00:45.8]} 23. c3
{[%clk 0:00:51]} 23... Ke7 {[%clk 0:00:43.5]} 24. Bxc4 {[%clk 0:00:46.1]} 24...
Rxc4 {[%clk 0:00:39.5]} 25. Bd6+ {[%clk 0:00:47]} 25... Ke8 {[%clk 0:00:38.4]}
26. Rh5 {[%clk 0:00:42.9]} 26... Bg5 {[%clk 0:00:33.4]} 27. Bb4 {[%clk
0:00:22.1]} 27... f6 {[%clk 0:00:28.1]} 28. Rd6 {[%clk 0:00:19]} 28... Kf7
{[%clk 0:00:27.4]} 29. Rh1 {[%clk 0:00:17.6]} 29... Rb8 {[%clk 0:00:23.3]} 30.
Re1 {[%clk 0:00:16.3]} 30... e5 {[%clk 0:00:23.3]} 31. Rd7+ {[%clk 0:00:16.9]}
31... Kg6 {[%clk 0:00:22.5]} 32. Red1 {[%clk 0:00:14.8]} 32... e4 {[%clk
0:00:21.1]} 33. Re7 {[%clk 0:00:14]} 33... exf3 {[%clk 0:00:20]} 34. gxf3 {[%clk
0:00:14.9]} 34... Rg8 {[%clk 0:00:17.3]} 35. Rd5 {[%clk 0:00:12.6]} 35... Rf4
{[%clk 0:00:16.6]} 36. Rd3 {[%clk 0:00:12]} 36... h5 {[%clk 0:00:16.3]} 37.
gxh5+ {[%clk 0:00:10.8]} 37... Kxh5 {[%clk 0:00:16.4]} 38. Rb7 {[%clk 0:00:10]}
38... Rf5 {[%clk 0:00:15.7]} 39. Kc2 {[%clk 0:00:09.3]} 39... Kg6 {[%clk
0:00:15.7]} 40. Kb3 {[%clk 0:00:09.1]} 40... Re8 {[%clk 0:00:14.8]} 41. Rdd7
{[%clk 0:00:09]} 41... Bh6 {[%clk 0:00:14]} 42. Rd3 {[%clk 0:00:06.4]} 42... Be3
{[%clk 0:00:12.8]} 43. Rdd7 {[%clk 0:00:04]} 43... Bh6 {[%clk 0:00:11.9]} 44.
Rd3 {[%clk 0:00:03.7]} 44... Re3 {[%clk 0:00:11]} 45. Rxe3 {[%clk 0:00:03]}
45... Bxe3 {[%clk 0:00:10.9]} 46. Bf8 {[%clk 0:00:03.9]} 46... Bh6 {[%clk
0:00:10.6]} 47. Kb4 {[%clk 0:00:04.1]} 47... Rxf3 {[%clk 0:00:09.9]} 48. Kxb5
{[%clk 0:00:04]} 48... f5 {[%clk 0:00:10.2]} 49. c4 {[%clk 0:00:03.9]} 49... f4
{[%clk 0:00:10.4]} 50. c5 {[%clk 0:00:04.2]} 50... Rb3+ {[%clk 0:00:09]} 51. Ka6
{[%clk 0:00:04.5]} 51... Rxb7 {[%clk 0:00:08.7]} 52. Kxb7 {[%clk 0:00:05.4]}
52... f3 {[%clk 0:00:08.7]} 53. c6 {[%clk 0:00:04.2]} 53... f2 {[%clk
0:00:08.5]} 54. c7 {[%clk 0:00:04.7]} 54... f1=Q {[%clk 0:00:08.7]} 55. c8=Q
{[%clk 0:00:05.3]} 55... Qb5+ {[%clk 0:00:08.2]} 56. Ka7 {[%clk 0:00:05.6]}
56... Be3+ {[%clk 0:00:07]} 57. Ka8 {[%clk 0:00:04.6]} 57... Qa5+ {[%clk
0:00:05.5]} 58. Kb8 {[%clk 0:00:03.9]} 58... Qb6+ {[%clk 0:00:04.8]} 59. Qb7
{[%clk 0:00:03.3]} 59... Qd8+ {[%clk 0:00:04.4]} 60. Qc8 {[%clk 0:00:02.1]}
60... Bf4+ {[%clk 0:00:04.1]} 61. Kb7 {[%clk 0:00:02.1]} 61... Qd5+ {[%clk
0:00:03.4]} 62. Qc6+ {[%clk 0:00:02.5]} 62... Qxc6+ {[%clk 0:00:03.4]} 63. Kxc6
{[%clk 0:00:03.4]} 63... Kf7 {[%clk 0:00:03.1]} 64. Bxg7 {[%clk 0:00:04.1]}
64... Kxg7 {[%clk 0:00:03.3]} 65. b4 {[%clk 0:00:04.8]} 65... Bh2 {[%clk
0:00:03.7]} 66. b5 {[%clk 0:00:05]} 66... Kg6 {[%clk 0:00:04.3]} 67. b6 {[%clk
0:00:05.7]} 67... Kh5 {[%clk 0:00:04.7]} 68. b7 {[%clk 0:00:06.4]} 68... Kh4
{[%clk 0:00:05.1]} 69. b8=Q {[%clk 0:00:07.1]} 69... Bxb8 {[%clk 0:00:01.6]}
1/2-1/2

[Event "Early-Titled-Tuesday-Blitz-July-09-2024"]
[Site "Chess.com"]
[Date "2024.07.09"]
[Round "9"]
[White "biveklama"]
[Black "honestgames"]
[Result "1-0"]
[WhiteElo "2688"]
[BlackElo "2829"]
[TimeControl "180+1"]
[EndTime "9:47:10 PDT"]
[Termination "biveklama won on time"]

1. e4 {[%clk 0:03:00.9]} 1... e5 {[%clk 0:03:00]} 2. Nf3 {[%clk 0:03:00.3]} 2...
Nc6 {[%clk 0:03:00.4]} 3. Nc3 {[%clk 0:03:00.5]} 3... Nf6 {[%clk 0:03:00.3]} 4.
Bc4 {[%clk 0:03:00.7]} 4... Be7 {[%clk 0:02:56.2]} 5. O-O {[%clk 0:02:59.7]}
5... O-O {[%clk 0:02:56.3]} 6. d4 {[%clk 0:02:59.6]} 6... exd4 {[%clk
0:02:53.8]} 7. Nxd4 {[%clk 0:02:59.6]} 7... d6 {[%clk 0:02:53.9]} 8. Re1 {[%clk
0:02:57.6]} 8... Bd7 {[%clk 0:02:50]} 9. h3 {[%clk 0:02:49.5]} 9... Nxd4 {[%clk
0:02:43.5]} 10. Qxd4 {[%clk 0:02:48.9]} 10... Bc6 {[%clk 0:02:44.4]} 11. Bg5
{[%clk 0:02:33.2]} 11... h6 {[%clk 0:02:42.8]} 12. Bh4 {[%clk 0:02:32.9]} 12...
Nd7 {[%clk 0:02:30.6]} 13. Bxe7 {[%clk 0:02:30.2]} 13... Qxe7 {[%clk 0:02:31.5]}
14. Bd5 {[%clk 0:02:30.2]} 14... Ne5 {[%clk 0:02:12.9]} 15. Rf1 {[%clk
0:02:22.8]} 15... Qf6 {[%clk 0:02:06.4]} 16. Rad1 {[%clk 0:02:10.3]} 16... g5
{[%clk 0:02:06.7]} 17. Bxc6 {[%clk 0:01:59.6]} 17... bxc6 {[%clk 0:02:06.3]} 18.
Ne2 {[%clk 0:02:00]} 18... c5 {[%clk 0:01:44.7]} 19. Qc3 {[%clk 0:01:53]} 19...
Qg7 {[%clk 0:01:24.5]} 20. f4 {[%clk 0:01:50.8]} 20... Ng6 {[%clk 0:01:24.9]}
21. Qe3 {[%clk 0:01:27.6]} 21... Rae8 {[%clk 0:00:54.1]} 22. fxg5 {[%clk
0:01:25.2]} 22... hxg5 {[%clk 0:00:47.2]} 23. Qxg5 {[%clk 0:01:20.5]} 23... Qe5
{[%clk 0:00:37.5]} 24. Qg4 {[%clk 0:01:11]} 24... Qxe4 {[%clk 0:00:35.2]} 25.
Nf4 {[%clk 0:01:09]} 25... Re5 {[%clk 0:00:21.9]} 26. Rd3 {[%clk 0:00:35.6]}
26... c4 {[%clk 0:00:09.8]} 27. Rg3 {[%clk 0:00:29.8]} 27... Qf5 {[%clk
0:00:04]} 28. Qh4 {[%clk 0:00:10.8]} 28... Qe4 {[%clk 0:00:03.1]} 29. Nxg6
{[%clk 0:00:09.1]} 29... fxg6 {[%clk 0:00:02.9]} 30. Rxf8+ {[%clk 0:00:07.4]}
30... Kxf8 {[%clk 0:00:03.8]} 31. Qf6+ {[%clk 0:00:07.7]} 31... Ke8 {[%clk
0:00:03.9]} 32. Rxg6 {[%clk 0:00:07.9]} 32... Kd7 {[%clk 0:00:04.4]} 33. Rg7+
{[%clk 0:00:06.1]} 33... Kc6 {[%clk 0:00:04.9]} 34. Qf7 {[%clk 0:00:05.9]} 34...
Qd4+ {[%clk 0:00:04.5]} 35. Kh2 {[%clk 0:00:05.5]} 35... Qb6 {[%clk 0:00:04.5]}
36. Qxc4+ {[%clk 0:00:03.5]} 36... Kb7 {[%clk 0:00:04.9]} 37. Rg3 {[%clk
0:00:03.3]} 37... Rc5 {[%clk 0:00:04.9]} 38. Qb3 {[%clk 0:00:03.5]} 38... Rb5
{[%clk 0:00:04.9]} 39. Qf3+ {[%clk 0:00:02.8]} 39... d5 {[%clk 0:00:05.5]} 40.
b3 {[%clk 0:00:03.3]} 40... Qd6 {[%clk 0:00:04.8]} 41. h4 {[%clk 0:00:03.2]}
41... Rb4 {[%clk 0:00:04.8]} 42. Kh3 {[%clk 0:00:03.2]} 42... Rf4 {[%clk
0:00:05]} 43. Qc3 {[%clk 0:00:02.5]} 43... Qe6+ {[%clk 0:00:05.2]} 44. Kh2
{[%clk 0:00:02.2]} 44... Rxh4+ {[%clk 0:00:05.8]} 45. Rh3 {[%clk 0:00:02.8]}
45... Re4 {[%clk 0:00:05.4]} 46. Qg3 {[%clk 0:00:03.3]} 46... d4 {[%clk
0:00:04.2]} 47. Qf3 {[%clk 0:00:03.5]} 47... Kb6 {[%clk 0:00:03.6]} 48. Rg3
{[%clk 0:00:02.9]} 48... Rh4+ {[%clk 0:00:03.2]} 49. Rh3 {[%clk 0:00:03.1]}
49... Re4 {[%clk 0:00:03.6]} 50. Rg3 {[%clk 0:00:03.6]} 50... Re3 {[%clk
0:00:03.8]} 51. Qg4 {[%clk 0:00:03]} 51... Qxg4 {[%clk 0:00:03.7]} 52. Rxg4
{[%clk 0:00:03.3]} 52... c5 {[%clk 0:00:04.6]} 53. Rg7 {[%clk 0:00:02.7]} 53...
Re2 {[%clk 0:00:04.6]} 54. Kh3 {[%clk 0:00:01.8]} 54... Rxc2 {[%clk 0:00:04.9]}
55. Rd7 {[%clk 0:00:02.6]} 55... Rxa2 {[%clk 0:00:05.1]} 56. g4 {[%clk
0:00:02.9]} 56... Rb2 {[%clk 0:00:05.1]} 57. g5 {[%clk 0:00:03.1]} 57... Rxb3+
{[%clk 0:00:05.7]} 58. Kh4 {[%clk 0:00:03.7]} 58... Rb1 {[%clk 0:00:06.2]} 59.
g6 {[%clk 0:00:02.4]} 59... Rg1 {[%clk 0:00:06.8]} 60. Kh5 {[%clk 0:00:02.9]}
60... a5 {[%clk 0:00:06.1]} 61. g7 {[%clk 0:00:02]} 61... a4 {[%clk 0:00:06.1]}
62. Rd6+ {[%clk 0:00:02.3]} 62... Kb5 {[%clk 0:00:06.3]} 63. Rg6 {[%clk
0:00:03.2]} 63... Rh1+ {[%clk 0:00:02.5]} 64. Kg5 {[%clk 0:00:03.3]} 1-0